[Event "Romanian Rapid Open 2022"]
[Site "Sebes"]
[Date "2022.12.02"]
[Round "5.6"]
[White "Nastase, Robert-Paul"]
[Black "Costachi, Mihnea"]
[Result "1/2-1/2"]
[ECO "C34"]
[WhiteElo "2229"]
[BlackElo "2476"]
[Annotator "TA"]
[PlyCount "167"]
[EventDate "2022.12.02"]
[EventType "rapid"]
[EventCountry "ROU"]
[SourceTitle "playchess.com"]
[Source "ChessBase"]
[SourceQuality "1"]
[TimeControl "600+5"]

{[%evp 9,167,-81,-75,-47,-22,-108,-111,-132,-101,-112,-6,-57,-37,-100,-74,-75,-77,-126,-97,-264,-279,-425,-196,-187,-194,-255,-142,-143,-23,-31,-23,-17,-25,-29,-13,-13,-16,-27,-28,-29,-13,-13,-15,-20,0,-3,0,0,0,0,0,0,0,0,0,0,0,0,0,0,0,0,0,0,0,0,0,0,0,0,0,0,0,0,0,0,0,0,0,0,0,0,0,0,0,0,0,0,0,0,0,0,0,0,0,0,0,0,0,0,0,0,0,0,0,0,0,0,0,0,0,0,0,0,0,0,0,0,0,0,0,0,0,0,0,0,0,0,0,0,0,0,0,0,0,0,0,0,0,0,0,0,0,0,0,0,0,0,0,0,0,0,0,0,0,0,0,0,0,0]} 1. e4 {[%emt 0:00:20]} e5 {[%emt 0:00:03]} 2. f4 {[%emt 0:00:01]} exf4 {[%emt 0:00:29]} 3. Nf3 {[%emt 0:00:01]} Nf6 {[%emt 0:00:09]} 4. Nc3 {[%emt 0:00:27]} d5 {[%emt 0:00:50]} 5. e5 {[%emt 0:01:09]} Nh5 $1 {[%emt 0:00:16]} 6. d4 {[%emt 0:00:32] C34: King's Gambit Accepted: 3 Nf3: 3...Nf6 and 3...d6.} g5 {[%emt 0:01:10][%cal Bg7g5,Bg5g4][%mdl 32] [#]} 7. g3 $146 {[%emt 0:01:28]} (7. Ng1 $11 g4 8. Nh3) ({Predecessor:} 7. Bd3 g4 8. O-O Be6 9. Ne1 c5 10. Ne2 c4 {0-1 (10) Bogdanovich,S (2562)-Sahoo,U (2348) New Delhi 2020}) 7... g4 $17 {[%emt 0:00:26]} (7... fxg3 $2 8. Bxg5 (8. Nxg5 Ng7 $18) 8... Be7 9. Bxe7 $18) 8. Nh4 {[%emt 0:00:35] Black is better.} fxg3 {[%emt 0:00:48]} 9. Ng2 {[%emt 0:00:05] [#]} Be7 {[%emt 0:01:52]} (9... c5 $1 $17 {Threatens to win with ...Nc6.} 10. Bf4 Nc6 11. hxg3 cxd4 12. Rxh5 dxc3 13. bxc3 Be6) 10. Qd3 {[%emt 0:00:29]} ({Better is} 10. h3 $11) 10... Nc6 $15 {[%emt 0:00:18]} 11. a3 {[%emt 0:00:55]} (11. hxg3 $2 Nb4 12. Rxh5 (12. Qb5+ $2 Bd7 $19) 12... Nxd3+ $19) (11. Bh6 $1 $15) 11... Ng7 {[%emt 0:00:27] ...Bf5 is the strong threat.} 12. hxg3 {[%emt 0:00:22]} Bf5 $36 {[%emt 0:00:28][%mdl 2048] White is under strong pressure.} 13. Qb5 {[%emt 0:01:36]} ({White should play} 13. Qd1) 13... a6 {[%emt 0:00:12]} 14. Qxb7 {[%emt 0:00:01]} (14. Qb3 $17) 14... Nxd4 $19 {[%emt 0:00:03]} 15. Nxd5 {[%emt 0:00:02]} (15. Ne3 {was called for.} c6 16. Ne2 Nf3+ 17. Kd1) 15... Nxc2+ {[%emt 0:00:25]} (15... Rb8 $142 16. Qxc7 (16. Qxa6 $2 Nxc2+ 17. Kf2 Qxd5 $19) (16. Nxc7+ $2 Kf8 $19) 16... Nxc2+ 17. Kf2 Nxa1 18. Qxe7+ Qxe7 19. Nxe7 Kxe7 20. Bg5+ Ke8) 16. Kf2 {[%emt 0:00:01] aiming for Qc6+.} O-O {[%emt 0:00:28]} ({And not} 16... Nxa1 17. Qc6+ (17. Nxc7+ Kf8 $15) 17... Kf8 18. Nxe7 $11) 17. Ra2 {[%emt 0:00:45]} (17. Nge3 {keeps fighting.} Nxe3 18. Bxe3) 17... Kh8 {[%emt 0:02:11]} (17... Bc5+ $19 18. Nge3 Bxe3+ 19. Bxe3 Nxe3 20. Nxe3 Rb8) 18. b4 $17 {[%emt 0:00:26] [#]} Be4 {[%emt 0:00:06]} (18... Bc5+ $1 $17 {[%mdl 512]} 19. Nge3 (19. bxc5 Rb8 $17) 19... Nxe3 20. Bxe3 Bxe3+ 21. Nxe3 Qg5) 19. Nf6 $1 $11 {[%emt 0:00:11] Active counter play!} Qd4+ {[%emt 0:00:17]} (19... Bxb7 $2 20. Rxh7#) 20. Be3 {[%emt 0:00:01]} Nxe3 {[%emt 0:00:19]} (20... Bxb7 $2 21. Rxh7#) 21. Qxe4 {[%emt 0:00:06] Dancing on a razor blade.} Qxe4 22. Nxe4 {[%emt 0:00:01]} Nxf1 {[%emt 0:00:27]} 23. Rxf1 {[%emt 0:00:48]} (23. Kxf1 {simplifies} f5 24. exf6 Bxf6 25. Nf4) 23... f5 {[%emt 0:00:01]} 24. exf6 {[%emt 0:00:20] And now Kg1 would win.} Bxf6 {[%emt 0:00:05]} 25. Nxf6 {[%emt 0:00:36] The position is equal.} Rxf6+ {[%emt 0:00:01]} 26. Nf4 $1 {[%emt 0:00:05]} Ne6 {[%emt 0:00:09]} 27. Kg2 {[%emt 0:00:02]} Raf8 {[%emt 0:00:06][%cal Re6f4]} 28. Rc2 {[%emt 0:00:10]} Nxf4+ {[%emt 0:00:03]} 29. gxf4 {[%emt 0:00:01]} Rxf4 {[%emt 0:00:06]} 30. Rxf4 {[%emt 0:00:02]} Rxf4 {[%emt 0:00:00]} 31. Rxc7 {[%emt 0:00:01][%mdl 4096] Endgame KR-KR} Rf3 {[%emt 0:00:01]} 32. a4 {[%emt 0:00:20]} Rb3 {[%emt 0:00:11]} 33. Rc4 {[%emt 0:00:11]} h5 {[%emt 0:00:05] White must now prevent ...Kg7.} 34. Rc5 {[%emt 0:00:15]} Rb2+ {[%emt 0:00:11]} 35. Kg3 {[%emt 0:00:08]} Rb3+ {[%emt 0:00:01]} 36. Kg2 {[%emt 0:00:03]} Rxb4 {[%emt 0:00:08]} 37. Rxh5+ {[%emt 0:00:04]} Kg7 {[%emt 0:00:01]} 38. Ra5 {[%emt 0:00:04]} Rb6 {[%emt 0:00:01]} 39. Kg3 {[%emt 0:00:18]} Rg6 {[%emt 0:00:00]} 40. Rf5 {[%emt 0:00:01]} Kh6 {[%emt 0:00:08]} 41. Re5 {[%emt 0:00:11]} Rd6 {[%emt 0:00:17]} 42. Re4 {[%emt 0:00:03]} Kg5 {[%emt 0:00:04] Hoping for ...Rd3+.} 43. Rxg4+ {[%emt 0:00:03]} Kf5 {[%emt 0:00:00]} 44. Rh4 {[%emt 0:00:06]} Rd3+ {[%emt 0:00:01]} 45. Kf2 {[%emt 0:00:02]} Ra3 {[%emt 0:00:01]} 46. Ke2 $1 {[%emt 0:00:03]} Ke5 {[%emt 0:00:02]} 47. Kd2 $1 {[%emt 0:00:01]} Kd5 {[%emt 0:00:00]} 48. Kc2 {[%emt 0:00:01]} Kc5 {[%emt 0:00:02]} 49. Kb2 {[%emt 0:00:00]} Rg3 {[%emt 0:00:01]} 50. Rf4 {[%emt 0:00:06]} a5 {[%emt 0:00:05]} 51. Ka2 {[%emt 0:00:03]} Rd3 {[%emt 0:00:02]} 52. Kb2 {[%emt 0:00:03]} Re3 {[%emt 0:00:05]} 53. Ka2 {[%emt 0:00:01]} Rg3 {[%emt 0:00:06]} 54. Kb2 {[%emt 0:00:01]} Rd3 {[%emt 0:00:03]} 55. Ka2 {[%emt 0:00:02]} Rd8 {[%emt 0:00:04]} 56. Kb2 {[%emt 0:00:02]} Rb8+ {[%emt 0:00:01]} 57. Kc3 {[%emt 0:00:04]} Rd8 {[%emt 0:00:04]} 58. Rf5+ {[%emt 0:00:03]} Kb6 {[%emt 0:00:01]} 59. Rb5+ {[%emt 0:00:04]} Ka6 {[%emt 0:00:01]} 60. Rh5 {[%emt 0:00:03]} Rd6 {[%emt 0:00:02]} 61. Kc4 {[%emt 0:00:02]} Rc6+ {[%emt 0:00:02]} 62. Kb3 $1 {[%emt 0:00:03]} Rg6 {[%emt 0:00:02]} 63. Rh3 {[%emt 0:00:03]} Kb6 {[%emt 0:00:01]} 64. Re3 {[%emt 0:00:02]} Rd6 {[%emt 0:00:02]} 65. Rf3 {[%emt 0:00:01]} Rd5 {[%emt 0:00:01]} 66. Rg3 {[%emt 0:00:03]} Kc5 {[%emt 0:00:01]} 67. Rc3+ {[%emt 0:00:03]} Kd4 {[%emt 0:00:01]} 68. Rh3 {[%emt 0:00:02]} Rd8 {[%emt 0:00:07]} 69. Rh4+ {[%emt 0:00:02]} Kd3 {[%emt 0:00:01]} 70. Rh3+ {[%emt 0:00:01]} Kd4 {[%emt 0:00:07]} 71. Rh4+ {[%emt 0:00:01]} Kc5 {[%emt 0:00:00]} 72. Rh5+ {[%emt 0:00:03]} Rd5 {[%emt 0:00:01]} 73. Rh3 {[%emt 0:00:02]} Rg5 {[%emt 0:00:04]} 74. Rf3 {[%emt 0:00:02]} Kd4 {[%emt 0:00:02]} 75. Rf4+ {[%emt 0:00:03]} Kd3 {[%emt 0:00:01]} 76. Rf8 {[%emt 0:00:06]} Rd5 {[%emt 0:00:05]} 77. Rb8 {[%emt 0:00:05]} Kd4 {[%emt 0:00:05]} 78. Rb5 {[%emt 0:00:05]} Rxb5+ {[%emt 0:00:04]} 79. axb5 {[%emt 0:00:01] White wants to mate with b6. KP-KP} Kc5 {[%emt 0:00:01] Prevents b6.} 80. Ka2 {[%emt 0:00:03]} a4 {[%emt 0:00:02]} 81. Kb2 {[%emt 0:00:02]} Kxb5 {[%emt 0:01:56]} 82. Ka3 {[%emt 0:00:01]} Kb6 {[%emt 0:00:00]} 83. Kb4 {[%emt 0:00:02]} a3 84. Kxa3 {[%emt 0:00:01] And White is the lucky defender.   Weighted Error Value: White=0.20 (precise) /Black=0.23 (precise)} 1/2-1/2

[Event "Romanian Rapid Open 2022"]
[Site "Sebes"]
[Date "2022.12.02"]
[Round "5.7"]
[White "Anton, Teodor"]
[Black "Creanga, Robert-Ionut"]
[Result "0-1"]
[ECO "A13"]
[WhiteElo "2438"]
[BlackElo "2190"]
[Annotator "TA"]
[PlyCount "150"]
[EventDate "2022.12.02"]
[EventType "rapid"]
[EventCountry "ROU"]
[SourceTitle "playchess.com"]
[Source "ChessBase"]
[SourceQuality "1"]
[TimeControl "600+5"]

{[%evp 16,150,21,4,15,8,6,16,29,33,45,0,0,0,-4,-3,-7,-7,-5,0,0,-34,0,0,0,14,56,37,83,110,125,82,111,62,193,174,204,201,192,89,89,81,76,76,55,60,109,82,123,116,135,-8,0,-819,-819,-819,-819,-819,-819,-817,-531,-531,-531,-672,-659,-722,-425,-418,-425,-425,-425,-611,-611,-611,-611,-656,-656,-611,-626,-652,-655,-643,-639,-714,-635,-1224,-927,-941,-966,-961,-947,-1066,-1060,-3027,-3488,-3488,-3300,-2452,-2448,-29980,-1891,-1429,0,-29975,-6095,-29978,-29979,-29976,-29976,-29961,-29966,-29969,-29972,-29964,-29969,-2040,-1848,-1368,-1294,-29977,-29978,-12845,-1803,-1652,-1270,-29978,-29979,-29979,0,-850,-738,-29974,-845,-29982,-29949,-29985,-29984]} 1. Nf3 {[%emt 0:00:03]} Nf6 {[%emt 0:00:09]} 2. c4 {[%emt 0:00:03]} e6 {[%emt 0:00:32]} 3. g3 {[%emt 0:00:17]} d5 {[%emt 0:00:24]} 4. Bg2 {[%emt 0:00:02]} dxc4 {[%emt 0:00:26]} 5. Qa4+ {[%emt 0:00:14]} Nbd7 {[%emt 0:00:15]} 6. O-O {[%emt 0:00:11]} a6 {[%emt 0:00:30]} 7. Qxc4 {[%emt 0:00:02]} b5 {[%emt 0:00:26]} 8. Qc2 {[%emt 0:00:01]} Bb7 {[%emt 0:00:20]} 9. a4 {[%emt 0:00:05]} Bd6 {[%emt 0:01:32] A13: English Opening: 1...e6.} 10. d3 {[%emt 0:00:11]} O-O {[%emt 0:00:18]} 11. Nc3 {[%emt 0:00:03]} b4 {[%emt 0:00:27] [#] The position is equal.} 12. Nd1 $146 {[%emt 0:00:04]} ({Predecessor:} 12. Nb1 e5 13. Nbd2 Qe7 14. Nh4 Bxg2 15. Kxg2 Nc5 16. e4 Rad8 17. b3 Qe6 18. Nc4 Be7 19. Rd1 Nfxe4 20. dxe4 Bxh4 21. Be3 Be7 22. Na5 Qb6 23. Nc4 Qe6 24. Na5 {½-½ (24) Otero Acosta,D (2428)-Ordaz Valdes,L (2414) Havana 2018}) 12... a5 {[%emt 0:00:15]} 13. e4 {[%emt 0:00:10]} Ne5 {[%emt 0:00:39]} 14. Ne1 {[%emt 0:00:47]} Nc6 {[%emt 0:00:48]} 15. Be3 {[%emt 0:01:47][%cal Oe4e5] Against Nd4} Be5 {[%emt 0:00:30]} 16. Nf3 {[%emt 0:01:58]} Ng4 {[%emt 0:00:39]} 17. Bc5 {[%emt 0:00:38]} Bd6 {[%emt 0:00:39]} 18. d4 {[%emt 0:00:33]} Bxc5 {[%emt 0:01:04]} (18... b3 $15 {feels stronger.} 19. Qxb3 Bxc5 20. dxc5 Ba6) 19. Qxc5 $11 {[%emt 0:00:02]} Nf6 {[%emt 0:00:31]} 20. Re1 {[%emt 0:00:31]} Nd7 {[%emt 0:00:08]} (20... b3 $5 {[%cal Rc6b4]}) 21. Qc2 {[%emt 0:01:09]} Nb6 {[%emt 0:00:07]} (21... b3 $14 {was preferrable.} 22. Qxb3 Nb4) 22. Ne3 $16 {[%emt 0:00:17]} Nb8 {[%emt 0:01:04]} 23. Rac1 {[%emt 0:00:40]} Na6 {[%emt 0:00:02][%cal Ob4b3]} 24. Red1 {[%emt 0:00:05]} ({Better is} 24. Nc4 $16) 24... Rc8 {[%emt 0:00:05]} (24... b3 $1 $14 25. Qb1 (25. Qxb3 Bxe4 26. Ne5 Bxg2 $14) 25... Nxa4) 25. Ne5 $18 {[%emt 0:00:06]} Qe8 {[%emt 0:00:05]} 26. b3 {[%emt 0:00:28]} c5 {[%emt 0:00:02] [#]} 27. N3c4 {[%emt 0:00:17]} (27. Qb2 $1 $18) 27... cxd4 {[%emt 0:00:07]} 28. Rxd4 {[%emt 0:00:03]} (28. Qd2 {simplifies} Nxc4 29. Nxc4 Rc5 30. Qxd4 Qc8 31. Qd6) 28... f6 {[%emt 0:00:04]} 29. Rd6 $1 {[%emt 0:00:26]} Nxa4 {[%emt 0:00:06]} 30. Nd7 {[%emt 0:00:32]} Rf7 {[%emt 0:00:04]} (30... Nc3 $1 $14) 31. Nxf6+ {[%emt 0:00:06]} (31. Bh3 {seems wilder.} f5 32. Nde5 Bxe4 33. Qd2) 31... gxf6 {[%emt 0:00:02]} 32. bxa4 {[%emt 0:00:02]} Rfc7 {[%emt 0:00:14] [#]} 33. Bf1 {[%emt 0:00:11]} (33. Qd1 $1 $16) 33... Nc5 $36 {[%emt 0:00:02][%csl LRa4,LRe4][%mdl 2048] Black fights for an advantage.} 34. Nb6 $2 {[%emt 0:00:26][%mdl 8192]} (34. Rd4 $11) 34... Nxe4 $19 {[%emt 0:00:05]} (34... Bxe4 $2 35. Qd1 Kg7 36. Nxc8 Rxc8 37. Bb5 $18) 35. Nxc8 {[%emt 0:00:19]} Rxc2 {[%emt 0:00:01]} 36. Rxc2 {[%emt 0:00:02]} Nxd6 {[%emt 0:00:07]} 37. Nxd6 {[%emt 0:00:01]} Qd7 {[%emt 0:00:05]} 38. Nxb7 {[%emt 0:00:02]} Qxb7 {[%emt 0:00:01][%mdl 4096] Endgame KQ-KRB} 39. Bc4 {[%emt 0:00:01]} Kf7 {[%emt 0:00:08] And now ...b3 would win.} 40. Re2 {[%emt 0:00:07]} Qc6 {[%emt 0:00:05]} 41. Bb3 {[%emt 0:00:05]} Ke7 {[%emt 0:00:02]} 42. Re3 {[%emt 0:00:02]} e5 {[%emt 0:00:04]} 43. h4 {[%emt 0:00:05]} (43. h3 $142) 43... h6 {[%emt 0:00:02]} 44. Kf1 {[%emt 0:00:01]} Qc1+ {[%emt 0:00:04]} 45. Ke2 {[%emt 0:00:01]} Qb2+ {[%emt 0:00:05]} 46. Ke1 {[%emt 0:00:01]} f5 {[%emt 0:00:08] Against g4} 47. Rd3 {[%emt 0:00:26]} f4 {[%emt 0:00:15]} 48. gxf4 exf4 {[%emt 0:00:02]} 49. Kf1 {[%emt 0:00:14]} Kf6 {[%emt 0:00:05]} 50. Kg2 {[%emt 0:00:04]} Ke5 {[%emt 0:00:11]} 51. Kf3 {[%emt 0:00:07]} Qb1 {[%emt 0:00:05]} 52. Ke2 {[%emt 0:00:03]} Qh1 {[%emt 0:00:05]} 53. h5 {[%emt 0:00:01]} Qxh5+ {[%emt 0:00:02]} 54. Kf1 {[%emt 0:00:05]} Qh1+ {[%emt 0:00:01]} 55. Ke2 {[%emt 0:00:01]} Qe4+ {[%emt 0:00:01]} 56. Kd2 {[%emt 0:00:01]} h5 {[%emt 0:00:05] Strongly threatening ...h4.} 57. Rh3 {[%emt 0:00:02]} Qf5 {[%emt 0:00:04]} (57... Qg2 $142 58. Rxh5+ Kf6 59. Kc1 Qxf2 60. Rh6+ Kg5 61. Rc6 f3 62. Rc2 Qd4 63. Bc4 f2 64. Bf1 Qa1+ 65. Kd2 Qxf1 66. Rc5+ Kf4 67. Rc8 Qe1+ 68. Kc2 Qe2+ 69. Kb3 Qe6+ 70. Rc4+ Kg5 71. Kc2 Qxc4+ 72. Kb2 Qc3+ 73. Kb1 f1=Q+ 74. Ka2 Qc2#) 58. Rd3 {[%emt 0:00:03]} Qe4 {[%emt 0:00:09]} (58... Qc8 $19 59. Rd5+ Kf6) 59. Rh3 $1 {[%emt 0:00:04]} Qd4+ {[%emt 0:00:01]} (59... h4 $142 60. Kc1 Qe1+ 61. Bd1 Qxf2 62. Rd3 Qf1 63. Rf3 Qg2 64. Rd3 h3 65. Bf3 Qf1+ 66. Kc2 h2 67. Bc6 Qe2+ 68. Rd2 b3+ 69. Kc3 Qe1 70. Bf3 b2 71. Kxb2 Qxd2+ 72. Kb3 Qd3+ 73. Ka2 Qxf3 74. Kb2 h1=Q 75. Kc2 Qh2+ 76. Kc1 Qfh1#) 60. Ke2 {[%emt 0:00:02]} Qb2+ {[%emt 0:00:05]} 61. Kf1 {[%emt 0:00:02]} Ke4 {[%emt 0:00:07]} 62. Kg2 {[%emt 0:00:01]} Qe2 {[%emt 0:00:08]} 63. Bf7 {[%emt 0:00:22]} Qg4+ {[%emt 0:00:11]} 64. Kh2 {[%emt 0:00:01]} Kd4 {[%emt 0:00:06]} 65. Bxh5 {[%emt 0:00:04]} Qg7 {[%emt 0:00:05] White must now prevent ...Qe5.} 66. Bd1 {[%emt 0:00:02]} Qe5 {[%emt 0:00:07] ...Qe1 is the strong threat.} 67. Bb3 {[%emt 0:00:20]} f3+ {[%emt 0:00:05]} 68. Rg3 {[%emt 0:00:10]} Ke4 {[%emt 0:00:01]} (68... Qe2 $142 69. Kh3 Qxf2 70. Rg4+ Kc3) 69. Bd1 {[%emt 0:00:04]} Qf4 {[%emt 0:00:05] ( -> ...Qh6+)} 70. Kh3 {[%emt 0:00:05]} Qh6+ {[%emt 0:00:02]} 71. Kg4 {[%emt 0:00:01]} Qf4+ {[%emt 0:00:08]} (71... Qe6+ $142 72. Kh4 Qf6+ 73. Kh3 Qh8+ 74. Kg4 Qg8+ 75. Kh5 Qd5+ 76. Rg5 Qxd1 77. Rxa5 Qh1+ 78. Kg6 Qg2+ 79. Kf7 Qxf2 80. Rh5 b3 81. Rg5 b2 82. Rb5 Qd4 83. Ke7 f2 84. Rg5 f1=R 85. Rh5 Qg7+ 86. Kd6 Rf6+ 87. Kc5 Qc7+ 88. Kb4 b1=Q+ 89. Ka3 Qg3#) 72. Kh3 {[%emt 0:00:01] Hoping for Rg4.} Qf5+ {[%emt 0:00:06]} 73. Kh4 {[%emt 0:00:00]} Qf7 {[%emt 0:00:00]} (73... Qh7+ $142 74. Kg5 Qg8+ 75. Kh6 Qh8+ 76. Kg6 Qe8+ 77. Kf6 Qd8+ 78. Kf7 Qxd1 79. Rg5 Qxa4 80. Rh5 Qa2+ 81. Kf8 Qxf2 82. Kg8 Qg3+ 83. Kh7 b3 84. Rh6 b2 85. Rh1 Kf5 86. Kh8 Kf6 87. Rh6+ Kf7 88. Rh7+ Kf8 89. Rf7+ Kxf7 90. Kh7 Qh4#) 74. Kg4 {[%emt 0:00:08]} b3 {[%emt 0:00:00]} 75. Rxf3 {[%emt 0:00:22]} Qd7+ {[%emt 0:00:00] Never resign too early!   Weighted Error Value: White=0.66/Black=0.53} 0-1

[Event "Romanian Rapid Open 2022"]
[Site "Sebes"]
[Date "2022.12.02"]
[Round "5.8"]
[White "Vrencian, Lehel"]
[Black "Baratosi, Daniel"]
[Result "1/2-1/2"]
[ECO "C63"]
[WhiteElo "2226"]
[BlackElo "2335"]
[Annotator "TA"]
[PlyCount "71"]
[EventDate "2022.12.02"]
[EventType "rapid"]
[EventCountry "ROU"]
[SourceTitle "playchess.com"]
[Source "ChessBase"]
[SourceQuality "1"]
[TimeControl "600+5"]

{[%evp 15,71,45,56,15,19,23,23,0,5,3,32,27,12,14,12,8,29,25,47,47,85,67,68,56,69,29,26,0,0,0,65,54,107,-177,-179,-168,-160,-179,-173,-176,-173,-178,-183,-193,-160,-148,-107,-104,-39,-59,0,-37,0,-54,0,-50,0,0]} 1. e4 {[%emt 0:00:25]} e5 {[%emt 0:00:21]} 2. Nf3 {[%emt 0:00:09]} Nc6 {[%emt 0:00:02]} 3. Bb5 {[%emt 0:00:01]} f5 {[%emt 0:00:06]} 4. Nc3 {[%emt 0:00:12]} fxe4 {[%emt 0:00:10]} 5. Nxe4 {[%emt 0:00:02]} Nf6 {[%emt 0:00:27]} 6. Nxf6+ {[%emt 0:01:13]} Qxf6 {[%emt 0:00:01]} 7. Qe2 {[%emt 0:00:01]} Be7 {[%emt 0:00:45]} 8. Bxc6 {[%emt 0:00:27]} bxc6 {[%emt 0:00:51]} 9. Qxe5 {[%emt 0:00:15] C63: Ruy Lopez: Schliemann/Jaenisch Defence.} (9. d4 $5 {[%cal Rc1g5]}) 9... O-O {[%emt 0:00:16][%cal Of6g6]} 10. Qxf6 {[%emt 0:00:05]} Bxf6 {[%emt 0:00:06]} 11. O-O {[%emt 0:00:24] White has an edge.} c5 {[%emt 0:00:23]} 12. d3 {[%emt 0:01:58]} d6 {[%emt 0:02:18]} 13. Rb1 {[%emt 0:00:57]} Bg4 {[%emt 0:00:42] [#]} 14. Nd2 $146 {[%emt 0:01:18]} ({Predecessor:} 14. Re1 Bxf3 15. gxf3 Be5 {½-½ (15) Gabel,A (2352)-Lins,T (2462) GER email 2019}) 14... Bd4 {[%emt 0:00:10] This pair of bishops is nice.} 15. c3 {[%emt 0:00:26]} Bf6 {[%emt 0:00:57]} 16. Re1 {[%emt 0:01:27] Inhibits Be2.} Rae8 {[%emt 0:00:48]} 17. Ne4 {[%emt 0:00:38]} Be5 {[%emt 0:00:57]} 18. Be3 {[%emt 0:00:16]} Bf5 {[%emt 0:00:14][%cal Oc5c4]} 19. Rbd1 {[%emt 0:00:06]} Rb8 {[%emt 0:00:06]} 20. Rd2 {[%emt 0:00:42]} c4 $1 {[%emt 0:00:27]} 21. Bxa7 {[%emt 0:00:21]} (21. f4 $5 {[%cal Rf4e5]} Bxe4 22. dxe4 Bxf4 23. Bxf4 Rxf4 24. e5 $11) 21... Ra8 {[%emt 0:00:01]} 22. Bd4 {[%emt 0:00:04]} (22. Be3 {seems wilder.} cxd3 23. f4 Bxe4 24. fxe5 Rxa2 25. Bd4) 22... Bxd4 {[%emt 0:00:20]} (22... Bf4 $1 $11 23. Be3 Bxe3 24. fxe3 Rxa2) 23. cxd4 $14 {[%emt 0:00:02]} cxd3 {[%emt 0:00:04]} (23... Bxe4 $14 24. dxe4 Rxa2) 24. Rxd3 $2 {[%emt 0:00:02][%mdl 8192]} (24. Nc3 $16 {is necessary to keep the advantage.}) 24... d5 $19 {[%emt 0:00:04]} ({Stronger than} 24... Rxa2 25. f3 $11) 25. Nc5 {[%emt 0:00:24] [#] Ra3 is the strong threat.} Bxd3 26. Nxd3 {[%emt 0:00:02]} Rxa2 {[%emt 0:00:05][%mdl 4096] Endgame KRR-KRN} 27. h4 {[%emt 0:00:14]} Ra4 {[%emt 0:00:06]} 28. b4 {[%emt 0:00:05]} Ra3 {[%emt 0:00:21]} 29. Nc5 {[%emt 0:00:06]} Ra2 {[%emt 0:00:04]} 30. f3 {[%emt 0:00:03]} Rb2 {[%emt 0:00:34]} 31. Re7 {[%emt 0:00:02] [#]} Rb1+ {[%emt 0:00:33]} ({Better is} 31... Rf6 $1 $17 32. h5 Rxb4) 32. Kf2 $15 {[%emt 0:00:05]} Rb2+ {[%emt 0:00:10]} ({Black should try} 32... Rf6 $15) 33. Kg3 {[%emt 0:00:10]} Rf7 {[%emt 0:00:10]} 34. Re8+ {[%emt 0:00:02]} Rf8 {[%emt 0:00:01]} 35. Re7 {[%emt 0:00:01]} Rf7 {[%emt 0:00:05]} (35... Rf6 $15) 36. Re8+ {[%emt 0:00:01] Weighted Error Value: White=0.27 (precise) /Black=0.20 (precise)} 1/2-1/2